lending/lending_fUSD_20240110
["ID","MTS","AMOUNT","RATE_DAILY","PERIOD"]
[311141236,1704929472946,-255.0,0.0004,12]
[311141237,1704929472955,-154.9083088,0.0004,2]
[311141238,1704929472965,-182.616944,0.0004,2]
[311141239,1704929472975,-210.3255793,0.0004,2]
[311141240,1704929472985,-238.0342146,0.0004,2]
[311141241,1704929472995,-265.7428498,0.0004,2]
[311141242,1704929473005,-172.64,0.0004,4]
[311141243,1704929473015,-293.4514851,0.0004,2]
[311141244,1704929473024,-500.0,0.0004,7]
[311141245,1704929473034,-500.0,0.0004,4]
[311141246,1704929473044,-500.0,0.0004,4]
[311141247,1704929473054,-500.0,0.0004,4]
[311141248,1704929473066,-500.0,0.0004,4]
[311141249,1704929473076,-500.0,0.0004,4]
[311141250,1704929473085,-500.0,0.0004,4]
[311141251,1704929473095,-500.0,0.0004,4]
[311141252,1704929473105,-177.27,0.0004,4]
[311141253,1704929473114,-500.0,0.0004,4]
[311141254,1704929473124,-187.66,0.0004,4]
[311141255,1704929473133,-500.0,0.0004,4]
[311141256,1704929473142,-500.0,0.0004,4]
[311141257,1704929473152,-1612.6377063,0.0004,2]
[311141258,1704929473162,-1905.7081074,0.0004,2]
[311141259,1704929473171,-2198.7785085,0.0004,2]
[311141260,1704929473180,-2491.8489096,0.0004,2]
[311141261,1704929473190,-2784.9193107,0.0004,2]
[311141262,1704929473201,-3077.9897118,0.0004,2]
[311141263,1704929473210,-591.34540332,0.0004,4]
[311141264,1704929473219,-500.0,0.0004,4]
[311141265,1704929473229,-500.0,0.0004,4]
[311141266,1704929473238,-500.0,0.0004,4]
[311141267,1704929473247,-500.0,0.0004,4]
[311141268,1704929473257,-500.0,0.0004,4]
[311141269,1704929473266,-407.54347694,0.0004,2]
[311141270,1704929473276,-500.0,0.0004,4]
[311141271,1704929473285,-578.75,0.0004,4]
[311141272,1704929473295,-500.0,0.0004,4]
[311141273,1704929473304,-500.0,0.0004,4]
[311141274,1704929473315,-500.0,0.0004,4]
[311141275,1704929473325,-392.44697346,0.0004,4]
[311141276,1704929473335,-500.0,0.0004,4]
[311141277,1704929473344,-500.0,0.0004,4]
[311141278,1704929473354,-5000.0,0.0004,30]
[311141279,1704929473363,-4992.4929589,0.0004,2]
[311141280,1704929473373,-4821.2383092,0.0004,2]
[311141281,1704929473382,-4649.9836596,0.0004,2]
[311141282,1704929473391,-4478.7290099,0.0004,2]
[311141283,1704929473400,-4307.4743602,0.0004,2]
[311141284,1704929473409,-4136.2197105,0.0004,2]
[311141285,1704929473419,-5000.0,0.0004,2]
[311141286,1704929473428,-500.0,0.0004,4]
[311141287,1704929473438,-5000.0,0.0004,2]
[311141288,1704929473447,-2698.56600743,0.0004,2]
[311141289,1704929473456,-1001.0,0.0004,7]
[311141290,1704929473465,-5000.0,0.0004,2]
[311141291,1704929473475,-500.0,0.0004,4]
[311141292,1704929473485,-500.0,0.0004,7]
[311141293,1704929473494,-500.0,0.0004,4]
[311141294,1704929473505,-1391.02,0.0004,4]
[311141295,1704929473514,-500.0,0.0004,4]
[311141296,1704929473524,-901.49,0.0004,4]
[311141297,1704929473534,-1168.0,0.0004,4]
[311141298,1704929473544,-500.0,0.0004,4]
[311141299,1704929473554,-1104.48,0.0004,4]
[311141300,1704929473568,-1336.04,0.0004,4]
[311141301,1704929473578,-500.0,0.0004,4]
[311141302,1704929473588,-1403.81,0.0004,4]
[311141303,1704929473597,-500.0,0.0004,4]
[311141304,1704929473607,-500.0,0.0004,4]
[311141305,1704929473617,-500.0,0.0004,4]
[311141306,1704929473627,-500.0,0.0004,4]
[311141307,1704929473638,-588.64,0.0004,4]
[311141308,1704929473647,-6847.32,0.0004,4]
[311141309,1704929473657,-500.0,0.0004,4]
[311141310,1704929473667,-500.0,0.0004,4]
[311141311,1704929473677,-500.0,0.0004,4]
[311141312,1704929473686,-1442.46,0.0004,4]
[311141313,1704929473696,-500.0,0.0004,4]
[311141314,1704929473707,-791.45,0.0004,4]
[311141315,1704929473717,-500.0,0.0004,4]
[311141316,1704929473727,-1371.84,0.0004,4]
[311141317,1704929473736,-500.0,0.0004,4]
[311141318,1704929473745,-674.38,0.0004,4]
[311141319,1704929473755,-500.0,0.0004,4]
[311141320,1704929473765,-1399.35,0.0004,4]
[311141321,1704929473774,-500.0,0.0004,4]
[311141322,1704929473784,-500.0,0.0004,4]
[311141323,1704929473793,-396.37,0.0004,4]
[311141324,1704929473803,-500.0,0.0004,4]
[311141325,1704929473816,-500.0,0.0004,4]
[311141326,1704929473829,-500.0,0.0004,4]
[311141327,1704929473839,-653.23,0.0004,4]
[311141328,1704929473848,-500.0,0.0004,4]
[311141329,1704929473858,-500.0,0.0004,4]
[311141330,1704929473867,-500.0,0.0004,4]
[311141331,1704929473878,-150.0,0.0004,2]
[311141332,1704929473887,-575.18,0.0004,4]
[311141333,1704929473896,-230.82,0.0004,4]
[311141334,1704929473906,-255.0,0.0004,12]
[311141335,1704929473915,-694.35,0.0004,4]
[311141336,1704929473925,-500.0,0.0004,4]
[311141337,1704929473934,-500.0,0.0004,4]
[311141338,1704929473944,-500.0,0.0004,4]
[311141339,1704929473953,-500.0,0.0004,4]
[311141340,1704929473963,-500.0,0.0004,4]
[311141341,1704929473972,-500.0,0.0004,4]
[311141342,1704929473981,-500.0,0.0004,4]
[311141343,1704929473991,-800.64,0.0004,4]
[311141344,1704929474001,-545.35,0.0004,4]
[311141345,1704929474011,-1377.63,0.0004,4]
[311141346,1704929474021,-986.83,0.0004,4]
[311141347,1704929474030,-151.0,0.0004,7]
[311141348,1704929474039,-151.0,0.0004,7]
[311141349,1704929474052,-1114.48,0.0004,4]
[311141350,1704929474064,-500.0,0.0004,4]
[311141351,1704929474074,-2234.62,0.0004,4]
[311141352,1704929474083,-887.56,0.0004,4]
[311141353,1704929474093,-2704.03,0.0004,4]
[311141354,1704929474102,-662.58,0.0004,4]
[311141355,1704929474296,-500.0,0.0004,4]
[311141356,1704929474306,-562.06,0.0004,4]
[311141357,1704929474319,-500.0,0.0004,4]
[311141358,1704929474329,-500.0,0.0004,4]
[311141359,1704929474338,-500.0,0.0004,4]
[311141360,1704929474347,-500.0,0.0004,4]
[311141361,1704929474357,-669.07,0.0004,4]
[311141362,1704929474366,-1960.32,0.0004,4]
[311141363,1704929474376,-500.0,0.0004,4]
[311141364,1704929474385,-1476.13,0.0004,4]
[311141365,1704929474403,-967.46,0.0004,4]
[311141366,1704929474421,-508.27,0.0004,4]
[311141367,1704929474431,-670.39,0.0004,4]
[311141368,1704929474440,-500.0,0.0004,4]
[311141369,1704929474450,-500.0,0.0004,4]
[311141370,1704929474459,-1108.5,0.0004,4]
[311141371,1704929474469,-1012.18,0.0004,4]
[311141372,1704929474478,-3847.64,0.0004,4]
[311141373,1704929474487,-1493.63,0.0004,4]
[311141374,1704929474496,-500.0,0.0004,4]
[311141375,1704929474505,-500.0,0.0004,4]
[311141376,1704929474515,-500.0,0.0004,4]
[311141377,1704929474525,-1517.38,0.0004,4]
[311141378,1704929474534,-1089.24,0.0004,4]
[311141379,1704929474542,-500.0,0.0004,4]
[311141380,1704929474552,-709.16,0.0004,4]
[311141381,1704929474562,-500.0,0.0004,4]
[311141382,1704929474572,-999.05,0.0004,4]
[311141383,1704929474581,-510.0,0.0004,30]
[311141384,1704929474591,-539.92,0.0004,4]
[311141385,1704929474600,-500.0,0.0004,4]
[311141386,1704929474610,-2312.53,0.0004,4]
[311141387,1704929474619,-1938.93,0.0004,4]
[311141388,1704929474628,-500.0,0.0004,4]
[311141389,1704929474638,-500.0,0.0004,4]
[311141390,1704929474648,-500.0,0.0004,4]
[311141391,1704929474657,-500.0,0.0004,4]
[311141392,1704929474667,-500.0,0.0004,4]
[311141393,1704929474677,-1637.04,0.0004,4]
[311141394,1704929474686,-500.0,0.0004,4]
[311141395,1704929474695,-500.0,0.0004,4]
[311141396,1704929474705,-5927.12984051,0.0004,2]
[311141397,1704929474714,-500.0,0.0004,4]
[311141398,1704929474724,-918.68,0.0004,4]
[311141399,1704929474737,-160745.37297745,0.0004,2]
[311141400,1704929474772,-210.33131765,0.0004,2]
[311141401,1704929474782,-734.84,0.0004,4]
[311141402,1704929474791,-500.0,0.0004,4]
[311141403,1704929474801,-500.0,0.0004,4]
[311141404,1704929474812,-1045.89,0.0004,4]
[311141405,1704929474822,-732.31,0.0004,4]
[311141406,1704929474835,-500.0,0.0004,4]
[311141407,1704929474844,-1070.3,0.0004,4]
[311141408,1704929474853,-500.0,0.0004,4]
[311141409,1704929474862,-151.0,0.0004,7]
[311141410,1704929474873,-198.268285,0.0004,7]
[311141411,1704929474882,-126454.9618549,0.0004,2]
[311141412,1704929474891,-500.0,0.0004,4]
[311141413,1704929474902,-500.0,0.0004,4]
[311141414,1704929474912,-760.88,0.0004,4]
[311141415,1704929474921,-500.0,0.0004,4]
[311141416,1704929474931,-779.41,0.0004,4]
[311141417,1704929474940,-1339.65,0.0004,4]
[311141418,1704929474950,-2385.17,0.0004,4]
[311141419,1704929474959,-514.85,0.0004,4]
[311141420,1704929474970,-500.0,0.0004,4]
[311141421,1704929474979,-500.0,0.0004,4]
[311141422,1704929474989,-500.0,0.0004,4]
[311141423,1704929474999,-1357.75,0.0004,4]
[311141424,1704929475008,-10860.0,0.0004,5]
[311141425,1704929475017,-584.33966246,0.00040027,7]
[311141426,1704929475026,-1114.35054271,0.00040068,5]
[311141427,1704929475036,-152.97219112,0.00040092,7]
[311141428,1704929475046,-152.97219112,0.00040096,7]
[311141429,1704929475055,-666.40111,0.00040098,6]
[311141430,1704929475067,-9767.25,0.000401,7]
[311141431,1704929475077,-12777.6,0.000401,7]
[311141432,1704929475086,-1297.0789914,0.000401,3]
[311141433,1704929475095,-1297.0789914,0.000401,3]
[311141434,1704929475104,-500.0,0.00040136,94]
[311141435,1704929475115,-256.07785542,0.00040146,7]
[311141436,1704929475124,-960.56379614,0.00040173,2]
[311141437,1704929475134,-449.0432663,0.00040173,2]
[311141438,1704929475143,-153.84,0.00040183,2]
[311141439,1704929475152,-666.40111,0.00040198,8]
[311141440,1704929475161,-1000.0,0.00040222,10]
[311141441,1704929475171,-1000.0,0.00040242,10]
[311141442,1704929475180,-159.49727413,0.00040246,7]
[311141443,1704929475191,-500.0,0.00040273,4]
[311141444,1704929475201,-535.31,0.00040273,4]
[311141445,1704929475210,-500.0,0.00040273,2]
[311141446,1704929475221,-500.0,0.00040273,4]
[311141447,1704929475230,-643.95,0.00040273,4]
[311141448,1704929475240,-500.0,0.00040273,4]
[311141449,1704929475249,-359.45908627,0.00040273,4]
[311141450,1704929475258,-969.81,0.00040273,4]
[311141451,1704929475267,-500.0,0.00040273,4]
[311141452,1704929475276,-500.0,0.00040273,4]
[311141453,1704929475285,-500.0,0.00040273,4]
[311141454,1704929475294,-500.0,0.00040273,4]
[311141455,1704929475303,-500.0,0.00040273,4]
[311141456,1704929475315,-500.0,0.00040273,4]
[311141457,1704929475324,-500.0,0.00040273,4]
[311141458,1704929475333,-523.08641295,0.00040273,4]
[311141459,1704929475341,-2076.04,0.00040273,4]
[311141460,1704929475350,-500.0,0.00040273,4]
[311141461,1704929475359,-500.0,0.00040273,4]
[311141462,1704929475368,-502.27,0.00040273,4]
[311141463,1704929475378,-762.31874199,0.00040273,2]
[311141464,1704929475387,-500.0,0.00040273,4]
[311141465,1704929475400,-500.0,0.00040273,4]
[311141466,1704929475409,-500.0,0.00040273,4]
[311141467,1704929475418,-500.0,0.00040273,4]
[311141468,1704929475427,-500.0,0.00040273,7]
[311141469,1704929475436,-500.0,0.00040273,4]
[311141470,1704929475445,-500.0,0.00040273,4]
[311141471,1704929475454,-500.0,0.00040273,4]
[311141472,1704929475464,-500.0,0.00040273,4]
[311141473,1704929475473,-500.0,0.00040273,4]
[311141474,1704929475482,-500.0,0.00040273,4]
[311141475,1704929475491,-500.0,0.00040273,4]
[311141476,1704929475500,-500.0,0.00040273,4]
[311141477,1704929475510,-500.0,0.00040273,4]
[311141478,1704929475519,-156.57,0.00040273,4]
[311141479,1704929475529,-500.0,0.00040273,4]
[311141480,1704929475539,-500.0,0.00040273,4]
[311141481,1704929475549,-500.0,0.00040273,4]
[311141482,1704929475559,-500.0,0.00040273,4]
[311141483,1704929475572,-500.0,0.00040273,4]
[311141484,1704929475582,-500.0,0.00040273,4]
[311141485,1704929475592,-500.0,0.00040273,4]
[311141486,1704929475601,-500.0,0.00040273,4]
[311141487,1704929475611,-500.0,0.00040273,4]
[311141488,1704929475620,-618.72,0.00040273,4]
[311141489,1704929475630,-500.0,0.00040273,4]
[311141490,1704929475639,-505.02,0.00040273,4]
[311141491,1704929475648,-500.0,0.00040273,4]
[311141492,1704929475658,-500.0,0.00040273,4]
[311141493,1704929475667,-1391.02,0.00040273,4]
[311141494,1704929475677,-500.0,0.00040273,4]
[311141495,1704929475686,-901.49,0.00040273,4]
[311141496,1704929475696,-1168.0,0.00040273,4]
[311141497,1704929475705,-500.0,0.00040273,4]
[311141498,1704929475715,-1104.48,0.00040273,4]
[311141499,1704929475725,-1336.04,0.00040273,4]
[311141500,1704929475735,-500.0,0.00040273,4]
[311141501,1704929475745,-1403.81,0.00040273,4]
[311141502,1704929475754,-500.0,0.00040273,4]
[311141503,1704929475764,-500.0,0.00040273,4]
[311141504,1704929475774,-500.0,0.00040273,4]
[311141505,1704929475783,-596.96,0.00040273,4]
[311141506,1704929475793,-588.64,0.00040273,4]
[311141507,1704929475802,-6847.32,0.00040273,4]
[311141508,1704929475814,-500.0,0.00040273,4]
[311141509,1704929475828,-500.0,0.00040273,4]
[311141510,1704929475844,-500.0,0.00040273,4]
[311141511,1704929475854,-1442.46,0.00040273,4]
[311141512,1704929475864,-477.358,0.00040273,4]
[311141513,1704929475875,-791.45,0.00040273,4]
[311141514,1704929475885,-500.0,0.00040273,4]
[311141515,1704929475895,-1371.84,0.00040273,4]
[311141516,1704929475905,-500.0,0.00040273,4]
[311141517,1704929475915,-674.38,0.00040273,4]
[311141518,1704929475926,-500.0,0.00040273,4]
[311141519,1704929475938,-1399.35,0.00040273,4]
[311141520,1704929475949,-500.0,0.00040273,4]
[311141521,1704929475960,-500.0,0.00040273,4]
[311141522,1704929475970,-500.0,0.00040273,4]
[311141523,1704929475981,-500.0,0.00040273,4]
[311141524,1704929475993,-500.0,0.00040273,4]
[311141525,1704929476005,-653.23,0.00040273,4]
[311141526,1704929476016,-500.0,0.00040273,4]
[311141527,1704929476028,-500.0,0.00040273,4]
[311141528,1704929476037,-500.0,0.00040273,4]
[311141529,1704929476048,-500.0,0.00040273,4]
[311141530,1704929476058,-694.35,0.00040273,4]
[311141531,1704929476073,-195.39709731,0.00040273,4]
[311141532,1704929476086,-500.0,0.00040273,4]
[311141533,1704929476099,-500.0,0.00040273,4]
[311141534,1704929476111,-500.0,0.00040273,4]
[311141535,1704929476123,-500.0,0.00040273,4]
[311141536,1704929476134,-500.0,0.00040273,4]
[311141537,1704929476143,-800.64,0.00040273,4]
[311141538,1704929476153,-545.35,0.00040273,4]
[311141539,1704929476163,-1377.63,0.00040273,4]
[311141540,1704929476172,-986.83,0.00040273,4]
[311141541,1704929476183,-1114.48,0.00040273,4]
[311141542,1704929476194,-500.0,0.00040273,4]
[311141543,1704929476204,-2234.62,0.00040273,4]
[311141544,1704929476214,-887.56,0.00040273,4]
[311141545,1704929476224,-2704.03,0.00040273,4]
[311141546,1704929476234,-662.58,0.00040273,4]
[311141547,1704929476244,-500.0,0.00040273,4]
[311141548,1704929476254,-562.06,0.00040273,4]
[311141549,1704929476264,-500.0,0.00040273,4]
[311141550,1704929476273,-500.0,0.00040273,4]
[311141551,1704929476283,-500.0,0.00040273,4]
[311141552,1704929476291,-500.0,0.00040273,4]
[311141553,1704929476301,-669.07,0.00040273,4]
[311141554,1704929476313,-1960.32,0.00040273,4]
[311141555,1704929476326,-490.83,0.00040273,4]
[311141556,1704929476336,-1476.13,0.00040273,4]
[311141557,1704929476345,-967.46,0.00040273,4]
[311141558,1704929476354,-508.27,0.00040273,4]
[311141559,1704929476363,-670.39,0.00040273,4]
[311141560,1704929476373,-500.0,0.00040273,4]
[311141561,1704929476382,-500.0,0.00040273,4]
[311141562,1704929476391,-1108.5,0.00040273,4]
[311141563,1704929476400,-1012.18,0.00040273,4]
[311141564,1704929476409,-3847.64,0.00040273,4]
[311141565,1704929476418,-1493.63,0.00040273,4]
[311141566,1704929476427,-500.0,0.00040273,4]
[311141567,1704929476437,-500.0,0.00040273,4]
[311141568,1704929476446,-500.0,0.00040273,4]
[311141569,1704929476455,-1517.38,0.00040273,4]
[311141570,1704929476465,-1089.24,0.00040273,4]
[311141571,1704929476474,-500.0,0.00040273,4]
[311141572,1704929476484,-709.16,0.00040273,4]
[311141573,1704929476493,-500.0,0.00040273,4]
[311141574,1704929476502,-999.05,0.00040273,4]
[311141575,1704929476512,-539.92,0.00040273,4]
[311141576,1704929476522,-500.0,0.00040273,4]
[311141577,1704929476531,-2312.53,0.00040273,4]
[311141578,1704929476541,-1938.93,0.00040273,4]
[311141579,1704929476551,-155.63982158,0.00040273,4]
[311141580,1704929476564,-500.0,0.00040273,4]
[311141581,1704929476575,-500.0,0.00040273,4]
[311141582,1704929476585,-500.0,0.00040273,4]
[311141583,1704929476595,-500.0,0.00040273,4]
[311141585,1704929476604,-1637.04,0.00040273,4]
[311141586,1704929476614,-500.0,0.00040273,4]
[311141587,1704929476623,-500.0,0.00040273,4]
[311141588,1704929476633,-500.0,0.00040273,4]
[311141589,1704929476643,-918.68,0.00040273,4]
[311141590,1704929476653,-734.84,0.00040273,4]
[311141591,1704929476662,-500.0,0.00040273,4]
[311141592,1704929476671,-500.0,0.00040273,4]
[311141593,1704929476681,-1045.89,0.00040273,4]
[311141594,1704929476690,-732.31,0.00040273,4]
[311141595,1704929476700,-500.0,0.00040273,4]
[311141596,1704929476710,-1070.3,0.00040273,4]
[311141597,1704929476719,-500.0,0.00040273,4]
[311141598,1704929476729,-500.0,0.00040273,4]
[311141599,1704929476741,-500.0,0.00040273,4]
[311141600,1704929476750,-760.88,0.00040273,4]
[311141601,1704929476759,-500.0,0.00040273,4]
[311141602,1704929476769,-779.41,0.00040273,4]
[311141603,1704929476778,-1339.65,0.00040273,4]
[311141604,1704929476788,-2385.17,0.00040273,4]
[311141605,1704929476797,-405.61,0.00040273,4]
[311141606,1704929476806,-500.0,0.00040273,4]
[311141607,1704929476819,-500.0,0.00040273,4]
[311141608,1704929476832,-158.0,0.00040274,14]
[311141609,1704929476841,-150.0,0.00040274,2]
[311141610,1704929476851,-666.40111,0.00040298,6]
[311141611,1704929476860,-150.0,0.00040303,2]
[311141612,1704929476870,-350.49,0.00040349,15]
[311141613,1704929476880,-540.41103422,0.00040356,96]
[311141614,1704929476890,-504.45407,0.0004037,4]
[311141615,1704929476899,-169.7979624,0.00040397,2]
[311141616,1704929476909,-666.40111,0.00040398,8]
[311141617,1704929476919,-157.49,0.000404,4]
[311141618,1704929476928,-157.49,0.000404,4]
[311141619,1704929476938,-9767.25,0.000404,7]
[311141620,1704929476947,-12777.6,0.000404,7]
[311141621,1704929476957,-226.23716556,0.000404,2]
[311141622,1704929476966,-170.0,0.0004043,50]
[311141623,1704929476976,-150.0,0.0004048,7]
[311141624,1704929476985,-1000.0,0.00040486,10]
[311141625,1704929476995,-666.40111,0.00040498,6]
[311141626,1704929477005,-38197.5073521,0.000405,2]
[311141627,1704929477014,-1076.57997082,0.000405,2]
[311141628,1704929477024,-1000.0,0.0004054,10]
[311141629,1704929477034,-500.0,0.00040547,2]
[311141630,1704929477044,-500.0,0.00040547,4]
[311141631,1704929477053,-643.95,0.00040547,4]
[311141632,1704929477064,-500.0,0.00040547,4]
[311141633,1704929477074,-969.81,0.00040547,4]
[311141634,1704929477084,-285.0,0.00040547,4]
[311141635,1704929477093,-193.79,0.00040547,4]
[311141636,1704929477102,-500.0,0.00040547,4]
[311141637,1704929477111,-500.0,0.00040547,4]
[311141638,1704929477120,-497.88653975,0.00040547,4]
[311141639,1704929477129,-373.49320223,0.00040547,4]
[311141640,1704929477138,-500.0,0.00040547,4]
[311141641,1704929477147,-2076.04,0.00040547,4]
[311141642,1704929477156,-500.0,0.00040547,4]
[311141643,1704929477166,-500.0,0.00040547,4]
[311141644,1704929477175,-500.0,0.00040547,4]
[311141645,1704929477184,-633.12840964,0.00040547,4]
[311141646,1704929477193,-500.0,0.00040547,4]
[311141647,1704929477203,-500.0,0.00040547,4]
[311141648,1704929477212,-500.0,0.00040547,7]
[311141649,1704929477221,-405.56,0.00040547,4]
[311141650,1704929477230,-350.25,0.00040547,4]
[311141651,1704929477240,-500.0,0.00040547,4]
[311141652,1704929477249,-500.0,0.00040547,4]
[311141653,1704929477259,-379.53,0.00040547,4]
[311141654,1704929477269,-550.75,0.00040547,4]
[311141655,1704929477279,-461.67524693,0.00040547,4]
[311141656,1704929477289,-500.0,0.00040547,4]
[311141657,1704929477299,-500.0,0.00040547,4]
[311141658,1704929477309,-500.0,0.00040547,4]
[311141659,1704929477323,-500.0,0.00040547,4]
[311141660,1704929477333,-500.0,0.00040547,4]
[311141661,1704929477343,-500.0,0.00040547,4]
[311141662,1704929477354,-500.0,0.00040547,4]
[311141663,1704929477363,-500.0,0.00040547,4]
[311141664,1704929477372,-500.0,0.00040547,4]
[311141665,1704929477382,-500.0,0.00040547,4]
[311141666,1704929477392,-500.0,0.00040547,4]
[311141667,1704929477401,-278.59,0.00040547,4]
[311141668,1704929477410,-500.0,0.00040547,4]
[311141669,1704929477421,-500.0,0.00040547,4]
[311141670,1704929477430,-1391.02,0.00040547,4]
[311141671,1704929477439,-500.0,0.00040547,4]
[311141672,1704929477449,-901.49,0.00040547,4]
[311141673,1704929477458,-1168.0,0.00040547,4]
[311141674,1704929477468,-289.11,0.00040547,4]
[311141675,1704929477478,-1104.48,0.00040547,4]
[311141676,1704929477488,-1336.04,0.00040547,4]
[311141677,1704929477498,-500.0,0.00040547,4]
[311141678,1704929477507,-1403.81,0.00040547,4]
[311141679,1704929477517,-500.0,0.00040547,4]
[311141680,1704929477527,-500.0,0.00040547,4]
[311141681,1704929477536,-500.0,0.00040547,4]
[311141682,1704929477546,-588.64,0.00040547,4]
[311141683,1704929477556,-6847.32,0.00040547,4]
[311141684,1704929477571,-500.0,0.00040547,4]
[311141685,1704929477582,-500.0,0.00040547,4]
[311141686,1704929477592,-580.3,0.00040547,4]
[311141687,1704929477601,-1442.46,0.00040547,4]
[311141688,1704929477611,-791.45,0.00040547,4]
[311141689,1704929477621,-500.0,0.00040547,4]
[311141690,1704929477630,-1371.84,0.00040547,4]
[311141691,1704929477640,-500.0,0.00040547,4]
[311141692,1704929477650,-674.38,0.00040547,4]
[311141693,1704929477661,-500.0,0.00040547,4]
[311141694,1704929477670,-1399.35,0.00040547,4]
[311141695,1704929477680,-500.0,0.00040547,4]
[311141696,1704929477689,-500.0,0.00040547,4]
[311141697,1704929477698,-500.0,0.00040547,4]
[311141698,1704929477708,-500.0,0.00040547,4]
[311141699,1704929477718,-500.0,0.00040547,4]
[311141700,1704929477727,-653.23,0.00040547,4]
[311141701,1704929477737,-500.0,0.00040547,4]
[311141702,1704929477747,-500.0,0.00040547,4]
[311141703,1704929477757,-500.0,0.00040547,4]
[311141704,1704929477767,-500.0,0.00040547,4]
[311141705,1704929477777,-694.35,0.00040547,4]
[311141706,1704929477787,-361.23,0.00040547,4]
[311141707,1704929477796,-500.0,0.00040547,4]
[311141708,1704929477806,-500.0,0.00040547,4]
[311141709,1704929477820,-500.0,0.00040547,4]
[311141710,1704929477834,-500.0,0.00040547,4]
[311141711,1704929477844,-800.64,0.00040547,4]
[311141712,1704929478001,-545.35,0.00040547,4]
[311141713,1704929478010,-1377.63,0.00040547,4]
[311141714,1704929478019,-986.83,0.00040547,4]
[311141715,1704929478029,-1114.48,0.00040547,4]
[311141716,1704929478038,-500.0,0.00040547,4]
[311141717,1704929478047,-2234.62,0.00040547,4]
[311141718,1704929478057,-887.56,0.00040547,4]
[311141719,1704929478071,-2704.03,0.00040547,4]
[311141720,1704929478081,-662.58,0.00040547,4]
[311141721,1704929478090,-500.0,0.00040547,4]
[311141722,1704929478100,-562.06,0.00040547,4]
[311141723,1704929478109,-500.0,0.00040547,4]
[311141724,1704929478118,-500.0,0.00040547,4]
[311141725,1704929478127,-500.0,0.00040547,4]
[311141726,1704929478136,-500.0,0.00040547,4]
[311141727,1704929478148,-669.07,0.00040547,4]
[311141728,1704929478157,-1960.32,0.00040547,4]
[311141729,1704929478167,-1476.13,0.00040547,4]
[311141730,1704929478176,-967.46,0.00040547,4]
[311141731,1704929478187,-508.27,0.00040547,4]
[311141732,1704929478196,-670.39,0.00040547,4]
[311141733,1704929478206,-500.0,0.00040547,4]
[311141734,1704929478215,-500.0,0.00040547,4]
[311141735,1704929478224,-1108.5,0.00040547,4]
[311141736,1704929478234,-1012.18,0.00040547,4]